fUST/lending_fUST_20240924
["ID","MTS","AMOUNT","RATE_DAILY","PERIOD"]
[339056488,1727183458406,-500.0,0.0003041,14]
[339056489,1727183458415,-500.0,0.0003041,14]
[339056490,1727183458425,-500.0,0.0003041,14]
[339056491,1727183458435,-500.0,0.0003041,14]
[339056492,1727183458445,-500.0,0.0003041,14]
[339056493,1727183458454,-500.0,0.0003041,14]
[339056494,1727183458464,-500.0,0.0003041,14]
[339056495,1727183458473,-520.03808135,0.0003041,14]
[339056496,1727183458483,-579.71,0.0003041,14]
[339056497,1727183458494,-328.10812098,0.0003041,14]
[339056498,1727183458504,-500.0,0.0003041,14]
[339056499,1727183458513,-513.62247615,0.0003041,14]
[339056500,1727183458522,-500.0,0.0003041,14]
[339056501,1727183458531,-500.0,0.0003041,14]
[339056502,1727183458541,-500.0,0.0003041,14]
[339056503,1727183458550,-500.0,0.0003041,14]
[339056504,1727183458564,-183.74445091,0.0003041,14]
[339056505,1727183458573,-500.0,0.0003041,14]
[339056506,1727183458582,-500.0,0.0003041,14]
[339056507,1727183458592,-500.0,0.0003041,14]
[339056508,1727183458602,-355.16111461,0.0003041,14]
[339056509,1727183458612,-500.0,0.0003041,14]
[339056510,1727183458621,-500.0,0.0003041,14]
[339056511,1727183458631,-514.29473836,0.0003041,14]
[339056512,1727183458640,-500.0,0.0003041,14]
[339056513,1727183458649,-500.0,0.0003041,14]
[339056514,1727183458659,-500.0,0.0003041,14]
[339056515,1727183458668,-500.0,0.0003041,14]
[339056516,1727183458678,-500.0,0.0003041,14]
[339056517,1727183458691,-500.0,0.0003041,14]
[339056518,1727183458705,-500.0,0.0003041,14]
[339056519,1727183458714,-500.0,0.0003041,14]
[339056520,1727183458723,-501.32287063,0.0003041,14]
[339056521,1727183458732,-500.0,0.0003041,14]
[339056522,1727183458742,-715.31,0.0003041,14]
[339056523,1727183458752,-716.92,0.0003041,14]
[339056524,1727183458762,-500.0,0.0003041,14]
[339056525,1727183458772,-550.2,0.0003041,14]
[339056526,1727183458781,-500.0,0.0003041,14]
[339056527,1727183458791,-500.0,0.0003041,14]
[339056528,1727183458801,-502.65638944,0.0003041,14]
[339056529,1727183458811,-500.0,0.0003041,14]
[339056530,1727183458820,-500.0,0.0003041,14]
[339056531,1727183458829,-500.0,0.0003041,14]
[339056532,1727183458838,-500.0,0.0003041,14]
[339056533,1727183458848,-500.0,0.0003041,14]
[339056534,1727183458857,-500.0,0.0003041,14]
[339056535,1727183458867,-500.0,0.0003041,14]
[339056536,1727183458876,-500.0,0.0003041,14]
[339056537,1727183458885,-500.0,0.0003041,14]
[339056538,1727183458894,-964.46,0.0003041,14]
[339056539,1727183458904,-500.0,0.0003041,14]
[339056540,1727183458913,-501.32,0.0003041,7]
[339056541,1727183458923,-500.0,0.0003041,14]
[339056542,1727183458933,-500.0,0.0003041,14]
[339056543,1727183458942,-610.96830648,0.0003041,14]
[339056544,1727183458951,-500.0,0.0003041,14]
[339056545,1727183458960,-500.0,0.0003041,2]
[339056546,1727183458969,-500.0,0.0003041,14]
[339056547,1727183458981,-500.0,0.0003041,14]
[339056548,1727183458994,-509.81330462,0.0003041,14]
[339056549,1727183459004,-501.04219859,0.0003041,14]
[339056550,1727183459014,-500.0,0.0003041,14]
[339056551,1727183459024,-330.81620729,0.0003041,14]
[339056552,1727183459033,-703.23,0.0003041,14]
[339056553,1727183459043,-1000.0,0.0003041,14]
[339056554,1727183459052,-500.0,0.0003041,14]
[339056555,1727183459061,-982.38,0.0003041,14]
[339056556,1727183459071,-500.0,0.0003041,14]
[339056557,1727183459081,-500.0,0.0003041,14]
[339056558,1727183459090,-500.0,0.0003041,14]
[339056559,1727183459100,-500.0,0.0003041,14]
[339056560,1727183459110,-500.0,0.0003041,14]
[339056561,1727183459120,-500.0,0.0003041,14]
[339056562,1727183459130,-500.0,0.0003041,14]
[339056563,1727183459140,-845.31,0.0003041,7]
[339056564,1727183459149,-500.0,0.0003041,14]
[339056565,1727183459160,-500.0,0.0003041,14]
[339056566,1727183459169,-500.0,0.0003041,14]
[339056567,1727183459263,-500.0,0.0003041,14]
[339056568,1727183459273,-500.73381848,0.0003041,14]
[339056569,1727183459283,-690.5,0.0003041,14]
[339056570,1727183459295,-500.0,0.0003041,14]
[339056571,1727183459305,-1040.87,0.0003041,14]
[339056572,1727183459315,-500.0,0.0003041,14]
[339056573,1727183459324,-550.98,0.0003041,14]
[339056574,1727183459335,-771.06,0.0003041,14]
[339056575,1727183459346,-500.0,0.0003041,14]
[339056576,1727183459356,-500.0,0.0003041,14]
[339056577,1727183459366,-500.0,0.0003041,14]
[339056578,1727183459375,-874.58,0.0003041,2]
[339056579,1727183459385,-500.0,0.0003041,14]
[339056580,1727183459395,-983.4,0.0003041,14]
[339056581,1727183459404,-582.74,0.0003041,14]
[339056582,1727183459414,-500.0,0.0003041,14]
[339056583,1727183459423,-500.0,0.0003041,14]
[339056584,1727183459432,-500.0,0.0003041,14]
[339056585,1727183459442,-500.0,0.0003041,2]
[339056586,1727183459452,-560.85,0.0003041,14]
[339056587,1727183459462,-500.0,0.0003041,14]
[339056588,1727183459472,-611.30972329,0.0003041,14]
[339056589,1727183459481,-500.0,0.0003041,14]
[339056590,1727183459490,-500.0,0.0003041,14]
[339056591,1727183459503,-500.0,0.0003041,14]
[339056592,1727183459512,-500.0,0.0003041,14]
[339056593,1727183459522,-1774.29,0.0003041,14]
[339056594,1727183459531,-500.0,0.0003041,14]
[339056595,1727183459541,-500.0,0.0003041,14]
[339056596,1727183459551,-685.04,0.0003041,14]
[339056597,1727183459564,-500.0,0.0003041,120]
[339056598,1727183459573,-500.0,0.0003041,14]
[339056599,1727183459583,-500.0,0.0003041,14]
[339056600,1727183459593,-500.0,0.0003041,14]
[339056601,1727183459603,-500.0,0.0003041,14]
[339056602,1727183459612,-521.76,0.0003041,14]
[339056603,1727183459622,-500.0,0.0003041,14]
[339056604,1727183459633,-500.0,0.0003041,14]
[339056605,1727183459643,-500.0,0.0003041,14]
[339056606,1727183459652,-258.3852388,0.0003041,14]
[339056607,1727183459662,-866.81,0.0003041,14]
[339056608,1727183459671,-500.0,0.0003041,14]
[339056609,1727183459680,-165.23525897,0.0003041,14]
[339056610,1727183459690,-500.0,0.0003041,14]
[339056611,1727183459699,-500.0,0.0003041,14]
[339056612,1727183459709,-1075.54,0.0003041,14]
[339056613,1727183459718,-619.12858028,0.0003041,14]
[339056614,1727183459727,-500.0,0.0003041,14]
[339056615,1727183459737,-500.0,0.0003041,14]
[339056616,1727183459748,-500.0,0.0003041,14]
[339056617,1727183459759,-500.0,0.0003041,14]
[339056618,1727183459769,-738.16,0.0003041,7]
[339056619,1727183459778,-503.8198438,0.0003041,14]
[339056620,1727183459787,-971.28,0.0003041,14]
[339056621,1727183459797,-1097.6,0.0003041,14]
[339056622,1727183459807,-1613.37,0.0003041,14]
[339056623,1727183459818,-500.0,0.0003041,14]
[339056624,1727183459829,-500.0,0.0003041,14]
[339056625,1727183459840,-565.12,0.0003041,14]
[339056626,1727183459850,-500.0,0.0003041,14]
[339056627,1727183459860,-500.0,0.0003041,14]
[339056628,1727183459869,-314.10305665,0.0003041,14]
[339056629,1727183459879,-664.73,0.0003041,14]
[339056630,1727183459889,-500.0,0.0003041,14]
[339056631,1727183459899,-500.0,0.0003041,14]
[339056632,1727183459908,-500.0,0.0003041,14]
[339056633,1727183459918,-931.14,0.0003041,14]
[339056634,1727183459928,-1600.34,0.0003041,14]
[339056635,1727183459937,-815.6,0.0003041,14]
[339056636,1727183459946,-539.32266096,0.0003041,14]
[339056637,1727183459955,-500.0,0.0003041,14]
[339056638,1727183459966,-500.0,0.0003041,14]
[339056639,1727183459975,-1015.01,0.0003041,14]
[339056640,1727183459988,-500.0,0.0003041,14]
[339056641,1727183459998,-500.0,0.0003041,14]
[339056642,1727183460008,-500.0,0.0003041,14]
[339056643,1727183460018,-814.57,0.0003041,14]
[339056644,1727183460028,-500.0,0.0003041,14]
[339056645,1727183460038,-500.0,0.0003041,14]
[339056646,1727183460047,-500.0,0.0003041,14]
[339056647,1727183460057,-500.0,0.0003041,14]
[339056648,1727183460067,-500.0,0.0003041,14]
[339056649,1727183460076,-501.2773307,0.0003041,14]
[339056650,1727183460085,-269.51,0.0003041,7]
[339056651,1727183460095,-500.0,0.0003041,14]
[339056652,1727183460104,-566.53,0.0003041,14]
[339056653,1727183460113,-593.08,0.0003041,14]
[339056654,1727183460123,-500.0,0.0003041,14]
[339056655,1727183460132,-1023.49,0.0003041,14]
[339056656,1727183460142,-196.01110269,0.0003041,14]
[339056657,1727183460151,-500.0,0.0003041,14]
[339056658,1727183460160,-843.22,0.0003041,14]
[339056659,1727183460170,-1314.69,0.0003041,14]
[339056660,1727183460179,-890.05,0.0003041,14]
[339056661,1727183460189,-500.0,0.0003041,14]
[339056662,1727183460198,-500.0,0.0003041,14]
[339056663,1727183460207,-501.52625528,0.0003041,14]
[339056664,1727183460216,-500.0,0.0003041,14]
[339056665,1727183460225,-921.47,0.0003041,14]
[339056666,1727183460235,-500.0,0.0003041,14]
[339056667,1727183460245,-500.0,0.0003041,14]
[339056668,1727183460255,-500.0,0.0003041,14]
[339056669,1727183460264,-500.0,0.0003041,14]
[339056670,1727183460273,-633.78,0.0003041,14]
[339056671,1727183460283,-462.0067019,0.0003041,14]
[339056672,1727183460292,-500.0,0.0003041,14]
[339056673,1727183460301,-500.0,0.0003041,14]
[339056674,1727183460310,-500.0,0.0003041,14]
[339056675,1727183460320,-500.0,0.0003041,14]
[339056676,1727183460330,-500.0,0.0003041,14]
[339056677,1727183460340,-855.94,0.0003041,2]
[339056678,1727183460350,-500.0,0.0003041,14]
[339056679,1727183460360,-715.92,0.0003041,14]
[339056680,1727183460370,-1180.58,0.0003041,14]
[339056681,1727183460379,-500.0,0.0003041,14]
[339056682,1727183460388,-772.86,0.0003041,14]
[339056683,1727183460397,-500.0,0.0003041,14]
[339056684,1727183460407,-500.0,0.0003041,14]
[339056685,1727183460416,-500.0,0.0003041,14]
[339056686,1727183460428,-500.0,0.0003041,14]
[339056687,1727183460439,-500.0,0.0003041,14]
[339056688,1727183460451,-500.0,0.0003041,14]
[339056689,1727183460463,-500.0,0.0003041,14]
[339056690,1727183460472,-500.0,0.0003041,14]
[339056691,1727183460482,-500.0,0.0003041,14]
[339056692,1727183460493,-500.0,0.0003041,14]
[339056693,1727183460502,-506.62259221,0.0003041,14]
[339056694,1727183460512,-500.0,0.0003041,14]
[339056695,1727183460523,-1008.64,0.0003041,14]
[339056696,1727183460533,-500.0,0.0003041,14]
[339056697,1727183460543,-500.0,0.0003041,14]
[339056698,1727183460557,-737.29,0.0003041,14]
[339056699,1727183460567,-500.0,0.0003041,14]
[339056700,1727183460577,-1153.19,0.0003041,14]
[339056701,1727183460586,-500.0,0.0003041,14]
[339056702,1727183460597,-500.0,0.0003041,14]
[339056703,1727183460606,-561.73698653,0.0003041,14]
[339056704,1727183460694,-400.29,0.0003041,14]
[339056705,1727183460704,-500.0,0.0003041,14]
[339056706,1727183460713,-560.6,0.0003041,14]
[339056707,1727183460724,-500.0,0.0003041,14]
[339056708,1727183460735,-500.0,0.0003041,14]
[339056709,1727183460745,-500.0,0.0003041,14]
[339056710,1727183460758,-500.0,0.0003041,14]
[339056711,1727183460768,-500.0,0.0003041,14]
[339056712,1727183460777,-500.0,0.0003041,14]
[339056713,1727183460787,-500.0,0.0003041,14]
[339056714,1727183460796,-500.0,0.0003041,14]
[339056715,1727183460805,-500.0,0.0003041,14]
[339056716,1727183460816,-500.0,0.0003041,14]
[339056717,1727183460825,-500.0,0.0003041,14]
[339056718,1727183460836,-500.0,0.0003041,14]
[339056719,1727183460845,-501.55,0.0003041,14]
[339056720,1727183460855,-775.8,0.0003041,14]
[339056721,1727183460865,-500.0,0.0003041,14]
[339056722,1727183460874,-500.0,0.0003041,14]
[339056723,1727183460884,-500.0,0.0003041,14]
[339056724,1727183460894,-500.0,0.0003041,14]
[339056725,1727183460903,-500.0,0.0003041,14]
[339056726,1727183460913,-500.0,0.0003041,14]
[339056727,1727183460922,-513.79093399,0.0003041,14]
[339056728,1727183460933,-500.0,0.0003041,7]
[339056729,1727183460943,-500.0,0.0003041,14]
[339056730,1727183460953,-500.0,0.0003041,14]
[339056731,1727183460964,-500.0,0.0003041,14]
[339056732,1727183460974,-986.37,0.0003041,14]
[339056733,1727183460983,-500.0,0.0003041,14]
[339056734,1727183460995,-500.0,0.0003041,14]
[339056735,1727183461011,-500.0,0.0003041,14]
[339056736,1727183461020,-500.0,0.0003041,14]
[339056737,1727183461030,-500.0,0.0003041,14]
[339056738,1727183461038,-500.0,0.0003041,14]
[339056739,1727183461048,-500.0,0.0003041,14]
[339056740,1727183461057,-500.0,0.0003041,14]
[339056741,1727183461066,-500.0,0.0003041,14]
[339056742,1727183461076,-500.0,0.0003041,14]
[339056743,1727183461085,-415.42,0.0003041,14]
[339056744,1727183461094,-500.0,0.0003041,14]
[339056745,1727183461104,-500.0,0.0003041,14]
[339056746,1727183461113,-506.68378167,0.0003041,14]
[339056747,1727183461123,-599.57,0.0003041,14]
[339056748,1727183461132,-500.0,0.0003041,14]
[339056749,1727183461141,-500.0,0.0003041,14]
[339056750,1727183461150,-624.3,0.0003041,14]
[339056751,1727183461160,-502.50752072,0.0003041,14]
[339056752,1727183461169,-500.0,0.0003041,14]
[339056753,1727183461178,-674.45,0.0003041,14]
[339056754,1727183461188,-500.0,0.0003041,14]
[339056755,1727183461198,-500.0,0.0003041,14]
[339056756,1727183461207,-500.0,0.0003041,14]
[339056757,1727183461217,-500.0,0.0003041,14]
[339056758,1727183461226,-191.16422076,0.0003041,14]
[339056759,1727183461236,-500.0,0.0003041,14]
[339056760,1727183461247,-236.6268118,0.0003041,14]
[339056761,1727183461257,-500.0,0.0003041,14]
[339056762,1727183461267,-500.0,0.0003041,14]
[339056763,1727183461276,-500.0,0.0003041,14]
[339056764,1727183461285,-500.0,0.0003041,14]
[339056765,1727183461294,-500.0,0.0003041,14]
[339056766,1727183461304,-500.0,0.0003041,14]
[339056767,1727183461316,-500.0,0.0003041,14]
[339056768,1727183461340,-504.5494285,0.0003041,14]
[339056769,1727183461359,-500.0,0.0003041,14]
[339056770,1727183461379,-500.0,0.0003041,14]
[339056771,1727183461398,-626.57,0.0003041,14]
[339056772,1727183461417,-500.0,0.0003041,14]
[339056773,1727183461436,-681.67,0.0003041,14]
[339056774,1727183461452,-500.0,0.0003041,14]
[339056775,1727183461468,-535.52,0.0003041,14]
[339056776,1727183461486,-500.0,0.0003041,14]
[339056777,1727183461510,-500.0,0.0003041,14]
[339056778,1727183461527,-500.0,0.0003041,14]
[339056779,1727183461545,-500.0,0.0003041,14]
[339056780,1727183461564,-500.0,0.0003041,14]
[339056781,1727183461581,-500.0,0.0003041,14]
[339056782,1727183461595,-500.0,0.0003041,14]
[339056783,1727183461611,-873.25,0.0003041,14]
[339056784,1727183461625,-500.0,0.0003041,14]
[339056785,1727183461639,-502.62382969,0.0003041,14]
[339056786,1727183461653,-1089.71,0.0003041,14]
[339056787,1727183461667,-792.01,0.0003041,14]
[339056788,1727183461682,-500.0,0.0003041,14]
[339056789,1727183461696,-511.42,0.0003041,14]
[339056790,1727183461710,-500.0,0.0003041,14]
[339056791,1727183461725,-500.0,0.0003041,14]
[339056792,1727183461742,-500.0,0.0003041,14]
[339056793,1727183461757,-500.0,0.0003041,14]
[339056794,1727183461773,-500.0,0.0003041,14]
[339056795,1727183461787,-500.0,0.0003041,14]
[339056796,1727183461803,-500.0,0.0003041,14]
[339056797,1727183461819,-500.0,0.0003041,14]
[339056798,1727183461833,-500.0,0.0003041,14]
[339056799,1727183461847,-569.29772658,0.0003041,14]
[339056800,1727183461861,-515.40177839,0.0003041,14]
[339056801,1727183461875,-500.0,0.0003041,14]
[339056802,1727183461889,-506.5479754,0.0003041,14]
[339056803,1727183461903,-500.0,0.0003041,14]
[339056804,1727183461917,-500.0,0.0003041,14]
[339056805,1727183461931,-500.0,0.0003041,14]
[339056806,1727183461944,-500.0,0.0003041,14]
[339056807,1727183461959,-500.0,0.0003041,14]
[339056808,1727183461974,-500.0,0.0003041,14]
[339056809,1727183461988,-500.0,0.0003041,14]
[339056810,1727183462006,-500.0,0.0003041,14]
[339056811,1727183462022,-500.0,0.0003041,14]
[339056812,1727183462037,-500.0,0.0003041,14]
[339056813,1727183462053,-500.0,0.0003041,14]
[339056814,1727183462067,-500.0,0.0003041,14]
[339056815,1727183462081,-584.71491681,0.0003041,14]
[339056816,1727183462096,-225.29853947,0.0003041,14]
[339056817,1727183462111,-500.0,0.0003041,14]
[339056818,1727183462125,-500.0,0.0003041,14]
[339056819,1727183462142,-720.06,0.0003041,14]
[339056820,1727183462158,-500.0,0.0003041,14]
[339056821,1727183462172,-500.0,0.0003041,14]
[339056822,1727183462181,-500.0,0.0003041,14]
[339056823,1727183462190,-500.0,0.0003041,14]
[339056824,1727183462199,-500.0,0.0003041,14]
[339056825,1727183462208,-760.61,0.0003041,14]
[339056826,1727183462218,-500.0,0.0003041,14]
[339056827,1727183462227,-1134.27,0.0003041,14]
[339056828,1727183462237,-500.0,0.0003041,14]
[339056829,1727183462251,-500.0,0.0003041,14]
[339056830,1727183462262,-500.0,0.0003041,14]
[339056831,1727183462439,-500.0,0.0003041,14]
[339056832,1727183462449,-507.55272155,0.0003041,14]
[339056833,1727183462458,-500.0,0.0003041,14]
[339056834,1727183462467,-500.0,0.0003041,14]
[339056835,1727183462477,-596.8875343,0.0003041,14]
[339056836,1727183462486,-370.74252807,0.0003041,14]
[339056837,1727183462498,-500.0,0.0003041,14]
[339056838,1727183462507,-500.0,0.0003041,14]
[339056839,1727183462516,-500.0,0.0003041,14]
[339056840,1727183462526,-455.70222679,0.0003041,14]
[339056841,1727183462535,-500.0,0.0003041,14]
[339056842,1727183462545,-510.26424694,0.0003041,14]
[339056843,1727183462559,-500.0,0.0003041,14]
[339056844,1727183462568,-500.0,0.0003041,14]
[339056845,1727183462578,-500.0,0.0003041,14]
[339056846,1727183462588,-500.0,0.0003041,14]
[339056847,1727183462597,-500.0,0.0003041,14]
[339056848,1727183462607,-500.0,0.0003041,14]
[339056849,1727183462616,-500.0,0.0003041,14]
[339056850,1727183462626,-468.5165479,0.0003041,14]
[339056851,1727183462636,-500.0,0.0003041,14]
[339056852,1727183462646,-1230.54,0.0003041,14]
[339056853,1727183462655,-3825.82,0.0003041,14]
[339056854,1727183462665,-511.23,0.0003041,14]
[339056855,1727183462674,-500.0,0.0003041,14]
[339056856,1727183462683,-500.0,0.0003041,14]
[339056857,1727183462694,-500.0,0.0003041,14]
[339056858,1727183462703,-500.0,0.0003041,14]
[339056859,1727183462715,-572.62,0.0003041,14]
[339056860,1727183462725,-527.07371471,0.0003041,14]
[339056861,1727183462735,-500.0,0.0003041,14]
[339056862,1727183462748,-500.0,0.0003041,14]
[339056863,1727183462759,-502.14106273,0.0003041,14]
[339056864,1727183462769,-500.0,0.0003041,14]
[339056865,1727183462778,-500.0,0.0003041,14]
[339056866,1727183462787,-500.0,0.0003041,14]
[339056867,1727183462797,-500.0,0.0003041,14]
[339056868,1727183462806,-1023.23,0.0003041,14]
[339056869,1727183462815,-500.0,0.0003041,14]
[339056870,1727183462824,-500.0,0.0003041,14]
[339056871,1727183462833,-500.0,0.0003041,14]
[339056872,1727183462842,-500.0,0.0003041,14]
[339056873,1727183462851,-500.0,0.0003041,14]
[339056874,1727183462860,-500.0,0.0003041,14]
[339056875,1727183462869,-500.0,0.0003041,14]
[339056876,1727183462878,-500.0,0.0003041,14]
[339056877,1727183462887,-777.7,0.0003041,14]
[339056878,1727183462896,-1020.85,0.0003041,14]
[339056879,1727183462905,-503.092381,0.0003041,14]
[339056880,1727183462914,-500.0,0.0003041,14]
[339056881,1727183462923,-500.0,0.0003041,14]
[339056882,1727183462932,-500.0,0.0003041,14]
[339056883,1727183462942,-500.0,0.0003041,14]
[339056884,1727183462953,-557.46947841,0.0003041,14]
[339056885,1727183462964,-578.99,0.0003041,14]
[339056886,1727183462973,-500.0,0.0003041,14]
[339056887,1727183462983,-500.0,0.0003041,14]
[339056888,1727183462993,-500.0,0.0003041,14]
[339056889,1727183463003,-500.0,0.0003041,14]
[339056890,1727183463016,-500.0,0.0003041,10]
[339056891,1727183463025,-500.0,0.0003041,14]
[339056892,1727183463035,-500.0,0.0003041,14]
[339056893,1727183463045,-500.0,0.0003041,14]
[339056894,1727183463054,-500.0,0.0003041,14]
[339056895,1727183463064,-500.0,0.0003041,14]
[339056896,1727183463073,-653.58,0.0003041,14]
[339056897,1727183463083,-1836.8,0.0003041,14]
[339056898,1727183463093,-500.0,0.0003041,14]
[339056899,1727183463104,-500.0,0.0003041,14]
[339056900,1727183463113,-500.0,0.0003041,14]
[339056901,1727183463124,-500.0,0.0003041,14]
[339056902,1727183463135,-747.94,0.0003041,14]
[339056903,1727183463146,-500.0,0.0003041,14]
[339056904,1727183463156,-500.0,0.0003041,14]
[339056905,1727183463165,-500.0,0.0003041,14]
[339056906,1727183463175,-500.0,0.0003041,14]
[339056907,1727183463184,-500.0,0.0003041,14]
[339056908,1727183463194,-500.0,0.0003041,14]
[339056909,1727183463203,-500.0,0.0003041,14]
[339056910,1727183463213,-500.0,0.0003041,14]
[339056911,1727183463223,-500.0,0.0003041,14]
[339056912,1727183463232,-410.96774553,0.0003041,14]
[339056913,1727183463243,-911.32,0.0003041,14]
[339056914,1727183463253,-500.0,0.0003041,14]
[339056915,1727183463263,-631.20682465,0.0003041,14]
[339056916,1727183463273,-500.0,0.0003041,14]
[339056917,1727183463282,-500.0,0.0003041,14]
[339056918,1727183463291,-500.0,0.0003041,14]
[339056919,1727183463300,-620.29245991,0.0003041,14]
[339056920,1727183463310,-500.44,0.0003041,14]
[339056921,1727183463320,-500.0,0.0003041,14]
[339056922,1727183463329,-627.49,0.0003041,14]
[339056923,1727183463339,-500.0,0.0003041,14]
[339056924,1727183463348,-500.0,0.0003041,14]
[339056925,1727183463357,-500.0,0.0003041,14]
[339056926,1727183463367,-937.49,0.0003041,14]
[339056927,1727183463376,-500.0,0.0003041,14]
[339056928,1727183463385,-500.0,0.0003041,14]
[339056929,1727183463395,-500.0,0.0003041,14]
[339056930,1727183463404,-500.0,0.0003041,14]
[339056931,1727183463414,-500.0,0.0003041,2]
[339056932,1727183463424,-500.0,0.0003041,14]
[339056933,1727183463434,-500.0,0.0003041,14]
[339056934,1727183463443,-500.0,0.0003041,14]
[339056935,1727183463453,-289.1148186,0.0003041,14]
[339056936,1727183463463,-500.0,0.0003041,14]
[339056937,1727183463472,-500.0,0.0003041,14]
[339056938,1727183463482,-500.0,0.0003041,14]
[339056939,1727183463491,-666.54,0.0003041,14]
[339056940,1727183463502,-500.0,0.0003041,14]
[339056941,1727183463511,-592.18,0.0003041,14]
[339056942,1727183463521,-500.0,0.0003041,14]
[339056943,1727183463530,-500.0,0.0003041,14]
[339056944,1727183463539,-2217.97,0.0003041,14]
[339056945,1727183463549,-770.23,0.0003041,14]
[339056946,1727183463561,-500.0,0.0003041,14]
[339056947,1727183463571,-500.0,0.0003041,5]
[339056948,1727183463580,-500.0,0.0003041,14]
[339056949,1727183463590,-839.15,0.0003041,14]
[339056950,1727183463600,-2095.3,0.0003041,14]
[339056951,1727183463610,-500.0,0.0003041,14]
[339056952,1727183463620,-500.0,0.0003041,14]
[339056953,1727183463631,-500.0,0.0003041,14]
[339056954,1727183463641,-500.0,0.0003041,14]
[339056955,1727183463650,-500.0,0.0003041,14]
[339056956,1727183463659,-500.0,0.0003041,14]
[339056957,1727183463669,-500.0,0.0003041,14]
[339056958,1727183463678,-500.0,0.0003041,14]
[339056959,1727183463687,-500.0,0.0003041,14]
[339056960,1727183463696,-500.0,0.0003041,14]
[339056961,1727183463706,-500.0,0.0003041,14]
[339056962,1727183463715,-237.85289566,0.0003041,14]
[339056963,1727183463725,-500.0,0.0003041,14]
[339056964,1727183463735,-150.0,0.0003041,7]
[339056965,1727183463744,-708.22,0.0003041,14]
[339056966,1727183463763,-500.0,0.0003041,2]
[339056967,1727183463773,-500.0,0.0003041,14]
[339056968,1727183463782,-500.0,0.0003041,14]
[339056969,1727183463792,-500.0,0.0003041,14]
[339056970,1727183463802,-500.0,0.0003041,14]
[339056971,1727183463811,-500.0,0.0003041,14]
[339056972,1727183463820,-500.0,0.0003041,14]
[339056973,1727183463830,-500.0,0.0003041,14]
[339056974,1727183463839,-500.0,0.0003041,14]
[339056975,1727183463849,-506.74569083,0.0003041,14]
[339056976,1727183463859,-936.09,0.0003041,14]
[339056977,1727183463868,-506.97,0.0003041,14]
[339056978,1727183463878,-500.0,0.0003041,14]
[339056979,1727183463887,-500.0,0.0003041,14]
[339056980,1727183463897,-500.0,0.0003041,14]
[339056981,1727183463907,-500.0,0.0003041,14]
[339056982,1727183463916,-500.0,0.0003041,2]
[339056983,1727183463926,-567.59,0.0003041,14]
[339056984,1727183463935,-500.0,0.0003041,14]
[339056985,1727183463944,-500.0,0.0003041,14]
[339056986,1727183463953,-502.14293627,0.0003041,14]
[339056987,1727183463963,-500.0,0.0003041,14]